bitfinex/quotes_BTCUSD_20241211
["timestamp","ask_amount","ask_price","bid_price","bid_amount"]
[1733903024746,0.0001716,97500.0,97499.0,0.2587747]
[1733903024938,0.0001716,97500.0,97499.0,0.48879994]
[1733903025139,0.0001716,97500.0,97499.0,0.49090047]
[1733903026682,0.0011716,97500.0,97499.0,0.49090047]
[1733903026943,0.0021716,97500.0,97499.0,0.49590047]
[1733903027415,0.0251716,97500.0,97499.0,0.49590047]
[1733903027819,0.0251716,97500.0,97499.0,0.39057523]
[1733903037437,0.205037,97544.0,97521.0,0.10930908]
[1733903037645,0.015,97546.0,97529.0,0.27456562]
[1733903037646,0.0003361,97530.0,97529.0,0.27456562]
[1733903037856,0.0003361,97530.0,97529.0,0.3838747]
[1733903038054,0.0003361,97530.0,97529.0,0.3859377]
[1733903038478,0.0023361,97530.0,97529.0,0.3859377]
[1733903039107,0.0003361,97530.0,97529.0,0.3859377]
[1733903039501,0.0003361,97530.0,97529.0,0.3889377]
[1733903039874,0.0003361,97530.0,97529.0,0.3919377]
[1733903044308,0.0003361,97530.0,97529.0,0.49726294]
[1733903047094,0.0003361,97530.0,97529.0,0.49426294]
[1733903047876,0.0003361,97530.0,97529.0,0.49126294]
[1733903048278,0.0003361,97530.0,97529.0,0.49526294]
[1733903048472,0.0013361,97530.0,97529.0,0.50226294]
[1733903052031,0.0013361,97530.0,97529.0,0.65226294]
[1733903052861,0.0003361,97530.0,97529.0,0.79126294]
[1733903053086,0.0013361,97530.0,97529.0,0.80026294]
[1733903053298,0.0013361,97530.0,97529.0,0.79626294]
[1733903053505,0.0003361,97530.0,97529.0,0.79626294]
[1733903054760,0.0003361,97530.0,97529.0,0.80526294]
[1733903055172,0.0003361,97530.0,97529.0,0.80026294]
[1733903055575,0.0003361,97530.0,97529.0,0.80726294]
[1733903060294,0.0003361,97530.0,97529.0,0.81746872]
[1733903067419,0.0003361,97530.0,97529.0,0.38216294]
[1733903067624,0.0003361,97530.0,97529.0,0.2768377]
[1733903067830,0.0003361,97530.0,97529.0,0.16752862]
[1733903068035,0.03096231,97530.0,97529.0,0.16752862]
[1733903068241,0.03096231,97530.0,97529.0,0.2768377]
[1733903068448,0.03096231,97530.0,97529.0,0.2608377]
[1733903068875,0.03096231,97530.0,97529.0,0.2708377]
[1733903069079,0.03096231,97530.0,97529.0,0.2648377]
[1733903069285,0.03096231,97530.0,97529.0,0.2608377]
[1733903069491,0.03096231,97530.0,97529.0,0.2668377]
[1733903069702,0.03096231,97530.0,97529.0,0.2708377]
[1733903070115,0.03096231,97530.0,97529.0,0.2668377]
[1733903070875,0.03096231,97530.0,97529.0,0.15152862]
[1733903070876,0.0309751,97530.0,97529.0,0.15152862]
[1733903071284,0.0233361,97530.0,97529.0,0.15152862]
[1733903071483,0.0309751,97530.0,97529.0,0.15652862]
[1733903072055,0.0309751,97530.0,97529.0,0.15952862]
[1733903072261,0.0233361,97530.0,97529.0,0.15952862]
[1733903072830,0.0233361,97530.0,97529.0,0.010063]
[1733903073032,0.0309751,97530.0,97529.0,0.008]
[1733903073236,0.0778751,97530.0,97529.0,0.008]
[1733903073663,0.0778751,97530.0,97529.0,0.15746562]
[1733903073868,0.0778751,97530.0,97529.0,0.15949084]
[1733903074245,0.0778751,97530.0,97529.0,0.15449084]
[1733903074617,0.0778751,97530.0,97529.0,0.15549084]
[1733903075221,0.0309751,97530.0,97529.0,0.15249084]
[1733903075433,0.0309751,97530.0,97529.0,0.15349084]
[1733903076371,0.0233361,97530.0,97529.0,0.15349084]
[1733903076879,0.0003361,97530.0,97529.0,0.15349084]
[1733903081085,0.0003361,97530.0,97529.0,0.26279992]
[1733903096093,0.0003361,97530.0,97529.0,0.15349084]
[1733903096894,0.00796755,97530.0,97529.0,0.15349084]
[1733903097100,0.03096755,97530.0,97529.0,0.15349084]
[1733903098044,0.03096755,97530.0,97529.0,0.26279992]
[1733903099591,0.00796755,97530.0,97529.0,0.26279992]
[1733903099799,0.03096755,97530.0,97529.0,0.26279992]
[1733903100436,0.03097087,97530.0,97529.0,0.26279992]
[1733903102295,0.03097087,97530.0,97529.0,0.15349084]
[1733903103051,0.13629611,97530.0,97529.0,0.00402522]
[1733903103258,0.21409611,97530.0,97529.0,0.002]
[1733903104077,0.21409611,97530.0,97529.0,0.001]
[1733903104386,0.21409611,97530.0,97529.0,0.00291926]
[1733903104623,0.023,97529.0,97523.0,0.14946562]
[1733903104827,0.023,97524.0,97523.0,0.14946562]
[1733903105020,0.03063477,97524.0,97523.0,0.14946562]
[1733903105761,0.023,97524.0,97523.0,0.14946562]
[1733903105983,0.03062949,97524.0,97523.0,0.14946562]
[1733903106140,0.03062949,97524.0,97523.0,0.15146562]
[1733903107071,0.023,97524.0,97523.0,0.2607747]
[1733903107302,0.03062949,97528.0,97526.0,0.10930908]
[1733903107502,0.0003361,97530.0,97526.0,0.10930908]
[1733903107503,0.00762949,97529.0,97526.0,0.10930908]
[1733903107707,0.023,97528.0,97526.0,0.10930908]
[1733903108023,0.023,97527.0,97526.0,0.10930908]
[1733903108624,0.023,97528.0,97526.0,0.10930908]
[1733903109222,0.0003361,97530.0,97526.0,0.10930908]
[1733903109421,0.00762829,97529.0,97526.0,0.10930908]
[1733903109676,0.023,97528.0,97526.0,0.10930908]
[1733903109950,0.0003361,97530.0,97526.0,0.10930908]
[1733903110401,0.0003361,97530.0,97529.0,0.14946562]
[1733903110609,0.0003361,97530.0,97529.0,0.2587747]
[1733903111971,0.0003361,97530.0,97529.0,0.26069936]
[1733903112183,0.0243361,97530.0,97529.0,0.26069936]
[1733903116073,0.0243361,97530.0,97529.0,0.15139028]
[1733903116326,0.03196439,97530.0,97529.0,0.00192466]
[1733903116544,0.11346439,97530.0,97529.0,0.00192466]
[1733903116788,0.023,97528.0,97523.0,0.14946562]
[1733903117002,0.023,97526.0,97523.0,0.14946562]
[1733903117326,0.205067,97529.0,97523.0,0.14946562]
[1733903117327,0.023,97524.0,97523.0,0.14946562]
[1733903117526,0.13595353,97524.0,97508.0,0.10930908]
[1733903117780,0.023,97517.0,97508.0,0.10930908]
[1733903118110,0.03062829,97517.0,97508.0,0.10930908]
[1733903118301,0.03062829,97517.0,97516.0,0.14946562]
[1733903119498,0.0306314,97522.0,97516.0,0.14946562]
[1733903119767,0.023,97520.0,97516.0,0.14946562]
[1733903120259,0.023,97520.0,97519.0,0.14946562]
[1733903120745,0.0306314,97520.0,97519.0,0.14946562]
[1733903121216,0.023,97520.0,97519.0,0.14946562]
[1733903121461,0.023,97522.0,97520.0,0.14946562]
[1733903121671,0.023,97522.0,97521.0,0.14946562]
[1733903121672,0.12832524,97522.0,97521.0,0.14946562]
[1733903121910,0.13595835,97522.0,97521.0,0.14946562]
[1733903122362,0.12832524,97522.0,97521.0,0.14946562]
[1733903122578,0.13595831,97522.0,97521.0,0.14946562]
[1733903122788,0.13595831,97522.0,97519.0,0.001]
[1733903122789,0.13595831,97522.0,97519.0,0.14946562]
[1733903122997,0.00763307,97521.0,97508.0,0.10930908]
[1733903123220,0.205088,97519.0,97508.0,0.10930908]
[1733903123428,0.03063307,97518.0,97517.0,0.14946562]
[1733903125945,0.23572307,97518.0,97517.0,0.15046562]
[1733903126214,0.23572307,97518.0,97517.0,0.001]
[1733903126438,0.24578777,97518.0,97517.0,0.002]
[1733903126874,0.24578777,97518.0,97517.0,0.00392408]
[1733903127099,0.30140717,97518.0,97517.0,0.002]
[1733903127320,0.48823241,97518.0,97517.0,0.002]
[1733903127527,0.48823241,97518.0,97517.0,0.00392408]
[1733903127759,0.48823241,97518.0,97517.0,0.001]
[1733903127943,0.43261301,97518.0,97503.0,0.14946562]
[1733903128179,0.023,97505.0,97503.0,0.14946562]
[1733903128412,0.023,97505.0,97504.0,0.15139024]
[1733903128630,0.023,97505.0,97504.0,0.14946562]
[1733903128631,0.00763142,97505.0,97504.0,0.14946562]
[1733903128838,0.03063142,97505.0,97504.0,0.15139024]
[1733903129927,0.03063142,97505.0,97504.0,0.15239024]
[1733903130352,0.03063142,97505.0,97504.0,0.00292462]
[1733903130570,0.04082774,97505.0,97504.0,0.00292462]
[1733903131001,0.04082774,97505.0,97504.0,0.00192462]
[1733903131210,0.04082774,97505.0,97504.0,0.00292462]
[1733903131418,0.04082774,97505.0,97504.0,0.001]
[1733903131661,0.04082774,97505.0,97504.0,0.002]
[1733903131869,0.04082774,97505.0,97504.0,0.00394071]
[1733903132084,0.04082774,97505.0,97504.0,0.002]
[1733903132503,0.04082774,97505.0,97504.0,0.001]
[1733903132713,0.228119,97504.0,97502.0,0.14946562]
[1733903132918,0.228123,97502.0,97501.0,0.14946562]
[1733903133126,0.23575442,97502.0,97493.0,0.10930908]
[1733903133335,0.03063142,97501.0,97493.0,0.10930908]
[1733903134009,0.03063142,97501.0,97500.0,0.14955142]
[1733903134914,0.228121,97503.0,97500.0,0.14955142]
[1733903135344,0.023,97501.0,97500.0,0.14955142]
[1733903137274,0.023,97503.0,97500.0,0.14955142]
[1733903137488,0.228121,97503.0,97500.0,0.14955142]
[1733903137691,0.00762275,97502.0,97501.0,0.14946562]
[1733903137903,0.03062275,97502.0,97501.0,0.14946562]
[1733903138770,0.00762275,97502.0,97501.0,0.14946562]
[1733903138983,0.228126,97501.0,97500.0,8.58e-05]
[1733903139264,0.23574875,97501.0,97500.0,8.58e-05]
[1733903140533,0.23674875,97501.0,97500.0,8.58e-05]
[1733903141420,0.34207399,97501.0,97500.0,8.58e-05]
[1733903142049,0.34207041,97501.0,97500.0,0.00202667]
[1733903142284,0.34207041,97501.0,97500.0,8.58e-05]
[1733903142500,0.34107041,97501.0,97500.0,0.00202667]
[1733903142703,0.34307041,97501.0,97500.0,8.58e-05]
[1733903142909,0.34307041,97501.0,97500.0,0.00203043]
[1733903143133,0.34107041,97501.0,97500.0,8.58e-05]
[1733903143340,0.34207041,97501.0,97500.0,0.00203043]
[1733903143547,0.34107041,97501.0,97500.0,8.58e-05]
[1733903143752,0.34107041,97501.0,97500.0,0.00203043]
[1733903143964,0.34407041,97501.0,97500.0,8.58e-05]
[1733903144200,0.34507041,97501.0,97500.0,0.00203043]
[1733903144440,0.34507041,97501.0,97500.0,8.58e-05]
[1733903144651,0.34507041,97501.0,97500.0,0.00203043]
[1733903144865,0.34507041,97501.0,97500.0,8.58e-05]
[1733903145289,0.34507041,97501.0,97500.0,0.00203043]
[1733903145291,0.34507041,97501.0,97500.0,8.58e-05]
[1733903145536,0.34507041,97501.0,97500.0,0.00203043]
[1733903145780,0.34507041,97501.0,97500.0,8.58e-05]
[1733903145984,0.34507041,97501.0,97500.0,0.00203043]
[1733903146200,0.34507041,97501.0,97500.0,8.58e-05]
[1733903146407,0.34507041,97501.0,97500.0,0.00203043]
[1733903146611,0.34507041,97501.0,97500.0,8.58e-05]
[1733903146825,0.34507041,97501.0,97500.0,0.00203043]
[1733903147027,0.34507041,97501.0,97500.0,8.58e-05]
[1733903147238,0.34507041,97501.0,97500.0,0.00203043]
[1733903147443,0.34466273,97501.0,97500.0,8.58e-05]
[1733903147646,0.34466273,97501.0,97500.0,0.00203043]
[1733903147857,0.34466273,97501.0,97500.0,8.58e-05]
[1733903148063,0.34466273,97501.0,97500.0,0.00203043]
[1733903148206,0.34466273,97501.0,97500.0,8.58e-05]
[1733903148412,0.34466273,97501.0,97500.0,0.00203043]
[1733903148636,0.34466834,97501.0,97500.0,8.58e-05]
[1733903148839,0.34466834,97501.0,97500.0,0.00203043]
[1733903149044,0.34466834,97501.0,97500.0,8.58e-05]
[1733903149200,0.34466834,97501.0,97500.0,0.00203043]
[1733903149406,0.34466834,97501.0,97500.0,8.58e-05]
[1733903149630,0.34466834,97501.0,97500.0,0.00203043]
[1733903152884,0.34466834,97501.0,97500.0,8.58e-05]
[1733903153113,0.68251606,97501.0,97500.0,8.58e-05]
[1733903153339,0.71428024,97501.0,97500.0,8.58e-05]
[1733903153561,0.74273303,97501.0,97500.0,8.58e-05]
[1733903153789,0.65133252,97501.0,97500.0,8.58e-05]
[1733903154025,0.65033252,97501.0,97500.0,8.58e-05]
[1733903154229,0.74167754,97501.0,97500.0,8.58e-05]
[1733903154476,0.74667754,97501.0,97500.0,8.58e-05]
[1733903154975,0.74167754,97501.0,97500.0,8.58e-05]
[1733903155209,0.68357275,97501.0,97500.0,8.58e-05]
[1733903155438,0.65633252,97501.0,97500.0,0.0010858]
[1733903155698,0.66768662,97501.0,97500.0,8.58e-05]
[1733903156153,0.67668662,97501.0,97500.0,0.0010858]
[1733903156379,0.68068662,97501.0,97500.0,0.0010858]
[1733903158348,0.68831433,97501.0,97500.0,0.0010858]
[1733903158552,0.68068955,97501.0,97500.0,0.0010858]
[1733903158768,0.68068835,97501.0,97500.0,0.0010858]
[1733903159665,0.78579164,97501.0,97500.0,0.0010858]
[1733903159878,0.87712069,97501.0,97500.0,0.0010858]
[1733903160556,0.77203071,97501.0,97500.0,0.0010858]
[1733903160771,0.72393071,97501.0,97500.0,0.0010858]
[1733903161185,0.72392982,97501.0,97500.0,0.0010858]
[1733903161809,0.72393516,97501.0,97500.0,0.0010858]
[1733903162219,0.63258746,97501.0,97500.0,0.0010858]
[1733903162396,0.72394149,97501.0,97500.0,0.0010858]
[1733903162805,0.82904478,97501.0,97500.0,0.0010858]
[1733903163212,0.73769075,97501.0,97500.0,0.0010858]
[1733903163773,0.73768919,97501.0,97500.0,0.0010858]
[1733903164657,0.6325859,97501.0,97500.0,0.0010858]
[1733903166690,0.90163273,97501.0,97500.0,0.0010858]
[1733903166892,0.67327682,97501.0,97500.0,0.0010858]
[1733903167520,0.67327648,97501.0,97500.0,8e-07]
[1733903168345,0.378147,97491.0,97490.0,8.58e-05]
[1733903168550,0.60016014,97491.0,97490.0,8.58e-05]
[1733903169183,0.78288323,97491.0,97490.0,8.58e-05]
[1733903169387,0.60016014,97491.0,97490.0,8.58e-05]
[1733903169585,0.59253642,97491.0,97490.0,8.58e-05]
[1733903169801,0.60715717,97491.0,97490.0,8.58e-05]
[1733903170222,0.78988026,97491.0,97490.0,8.58e-05]
[1733903171266,0.89500368,97491.0,97490.0,8.58e-05]
[1733903172104,0.90528961,97491.0,97490.0,8.58e-05]
[1733903172306,0.90530439,97491.0,97490.0,8.58e-05]
[1733903173333,0.72254639,97491.0,97490.0,8.58e-05]
[1733903173950,0.76323731,97491.0,97490.0,8.58e-05]
[1733903176852,0.65813402,97491.0,97490.0,8.58e-05]
[1733903177060,0.65813239,97491.0,97490.0,8.58e-05]
[1733903177264,0.58083239,97491.0,97490.0,8.58e-05]
[1733903179121,0.58494139,97491.0,97490.0,8.58e-05]
[1733903179943,0.76763002,97491.0,97490.0,8.58e-05]
[1733903180126,0.69004468,97491.0,97490.0,8.58e-05]
[1733903180535,0.87274318,97491.0,97490.0,8.58e-05]
[1733903180714,0.76763989,97491.0,97490.0,8.58e-05]
[1733903180913,0.58494463,97491.0,97490.0,8.58e-05]
[1733903181336,0.63560905,97491.0,97490.0,8.58e-05]
[1733903181548,0.54425371,97491.0,97490.0,8.58e-05]
[1733903181964,0.51248953,97491.0,97490.0,8.58e-05]
[1733903182156,0.51249432,97491.0,97490.0,8.58e-05]
[1733903182384,0.54424431,97491.0,97490.0,8.58e-05]
[1733903183202,0.65545005,97491.0,97490.0,8.58e-05]
[1733903183413,0.63559732,97491.0,97490.0,8.58e-05]
[1733903183619,0.62797017,97491.0,97490.0,8.58e-05]
[1733903183826,0.63562151,97491.0,97490.0,8.58e-05]
[1733903184858,0.54424952,97491.0,97490.0,8.58e-05]
[1733903185471,0.63985609,97491.0,97490.0,8.58e-05]
[1733903185704,0.77691408,97491.0,97490.0,8.58e-05]
[1733903185910,0.63985609,97491.0,97490.0,8.58e-05]
[1733903186902,0.63222373,97491.0,97490.0,8.58e-05]
[1733903187143,0.63985732,97491.0,97490.0,8.58e-05]
[1733903189340,0.77691531,97491.0,97490.0,8.58e-05]
[1733903189816,0.205168,97481.0,97480.0,8.58e-05]
[1733903190048,0.49112683,97481.0,97480.0,8.58e-05]
[1733903190549,0.49112837,97481.0,97480.0,8.58e-05]
[1733903192047,0.49212837,97481.0,97480.0,8.58e-05]
[1733903192273,0.5239391,97481.0,97480.0,8.58e-05]
[1733903193494,0.54480408,97481.0,97480.0,8.58e-05]
[1733903193982,0.54480408,97481.0,97472.0,0.14946562]
[1733903193983,0.205185,97473.0,97472.0,0.14946562]
[1733903194253,0.34114537,97473.0,97472.0,0.14963001]
[1733903194562,0.34114537,97473.0,97472.0,0.15162411]
[1733903195594,0.34114537,97473.0,97472.0,0.15362411]
[1733903195841,0.34114537,97473.0,97472.0,0.15562411]
[1733903196281,0.34114537,97473.0,97472.0,0.15362411]
[1733903196831,0.34114537,97473.0,97472.0,0.15462411]
[1733903197265,0.34115014,97473.0,97472.0,0.15262411]
[1733903197522,0.34115014,97473.0,97472.0,0.15362411]
[1733903199779,0.34115014,97473.0,97472.0,0.15163001]
[1733903200269,0.43257205,97473.0,97472.0,0.15163001]
[1733903200528,0.34115016,97473.0,97472.0,0.15163001]
[1733903201271,0.34115016,97473.0,97472.0,0.15362775]
[1733903202978,0.37298005,97473.0,97472.0,0.15362775]
[1733903203233,0.43275245,97473.0,97472.0,0.15362775]
[1733903203482,0.34115016,97473.0,97472.0,0.15163001]
[1733903203735,0.43275659,97473.0,97472.0,0.15163001]
[1733903203945,0.34115016,97473.0,97472.0,0.15163001]
[1733903204589,0.34115016,97473.0,97472.0,0.15340578]
[1733903206530,0.43277033,97473.0,97472.0,0.15340578]
[1733903206677,0.43277033,97473.0,97472.0,0.15163001]
[1733903206678,0.34115016,97473.0,97472.0,0.15163001]
[1733903206879,0.43277033,97473.0,97472.0,0.00216439]
[1733903207476,0.43277033,97473.0,97472.0,0.00394016]
[1733903208287,0.34115016,97473.0,97472.0,0.00216439]
[1733903208714,0.43278331,97473.0,97472.0,0.00216439]
[1733903209315,0.34115016,97473.0,97472.0,0.00216439]
[1733903211430,0.47855981,97473.0,97472.0,0.00216439]
[1733903216796,0.47855565,97473.0,97472.0,0.00216439]
[1733903220895,0.47856526,97473.0,97472.0,0.00216439]
[1733903221917,0.4709295,97473.0,97472.0,0.00216439]
[1733903222119,0.47856573,97473.0,97472.0,0.00216439]
[1733903222463,0.43276223,97473.0,97472.0,0.00216439]
[1733903223809,0.4484002,97473.0,97472.0,0.00216439]
[1733903224346,0.23582123,97473.0,97472.0,0.04766439]
[1733903224746,0.23582123,97473.0,97472.0,0.0494537]
[1733903225983,0.34114647,97473.0,97472.0,0.0039537]
[1733903226186,0.47856573,97473.0,97472.0,0.00216439]
[1733903226651,0.34114647,97473.0,97472.0,0.00216439]
[1733903227605,0.60707222,97473.0,97472.0,0.00216439]
[1733903228499,0.52296239,97473.0,97472.0,0.00216439]
[1733903229081,0.70619626,97473.0,97472.0,0.00216439]
[1733903230021,0.70619626,97473.0,97472.0,0.12286439]
[1733903230022,0.58279663,97473.0,97472.0,0.12286439]
[1733903230217,0.49114647,97473.0,97472.0,0.12286439]
[1733903235220,0.00763922,97473.0,97472.0,0.27233001]
[1733903235432,0.00763922,97473.0,97472.0,0.38163909]
[1733903235640,0.00763922,97473.0,97472.0,0.3832505]
[1733903235867,0.00763922,97479.0,97478.0,0.10930908]
[1733903236122,0.00763922,97479.0,97478.0,0.3820747]
[1733903236321,0.09166786,97486.0,97479.0,0.5872467]
[1733903236472,0.0001716,97490.0,97479.0,0.5872467]
[1733903236473,0.0001716,97490.0,97479.0,0.87729616]
[1733903236674,0.0001716,97490.0,97479.0,0.87890507]
[1733903237346,0.0001716,97490.0,97479.0,0.83243888]
[1733903237864,0.0001716,97490.0,97479.0,0.72711364]
[1733903238070,0.0001716,97490.0,97479.0,0.58885561]
[1733903238341,0.0001716,97490.0,97479.0,0.38368361]
[1733903238474,0.0001716,97490.0,97479.0,0.38868361]
[1733903239171,0.0001716,97490.0,97479.0,0.38368361]
[1733903239378,0.01023625,97486.0,97479.0,0.38768361]
[1733903239580,0.0011716,97480.0,97479.0,0.39568361]
[1733903240779,0.0011716,97480.0,97479.0,0.24621799]
[1733903240984,0.0011716,97480.0,97479.0,0.39568361]
[1733903241625,0.0011716,97480.0,97479.0,0.24621799]
[1733903241830,0.0011716,97480.0,97479.0,0.13690891]
[1733903242241,0.0011716,97480.0,97479.0,0.01360891]
[1733903242445,0.0241716,97480.0,97479.0,0.01360891]
[1733903243061,0.12949684,97480.0,97479.0,0.16307453]
[1733903243267,0.1932236,97480.0,97479.0,0.15507453]
[1733903243472,0.12849684,97480.0,97479.0,0.15507453]
[1733903243686,0.12949684,97480.0,97479.0,0.15507453]
[1733903243887,0.12849684,97480.0,97479.0,0.15507453]
[1733903244398,0.13868682,97480.0,97479.0,0.15107453]
[1733903245328,0.14068682,97480.0,97479.0,0.15107453]
[1733903245549,0.13968682,97480.0,97479.0,0.15107453]
[1733903245950,0.14168682,97480.0,97479.0,0.15107453]
[1733903247107,0.21816519,97480.0,97479.0,0.15107453]
[1733903247307,0.22577506,97480.0,97479.0,0.15107453]
[1733903247971,0.14929669,97480.0,97479.0,0.15107453]
[1733903248210,0.14168682,97480.0,97479.0,0.15107453]
[1733903248412,0.14929669,97480.0,97479.0,0.15107453]
[1733903248554,0.14168682,97480.0,97479.0,0.15107453]
[1733903248757,0.14929669,97480.0,97479.0,0.15107453]
[1733903248960,0.14168682,97480.0,97479.0,0.15107453]
[1733903249157,0.14929669,97480.0,97479.0,0.15107453]
[1733903249405,0.14168682,97480.0,97479.0,0.15107453]
[1733903249644,0.14929669,97480.0,97479.0,0.15107453]
[1733903249855,0.14168682,97480.0,97479.0,0.15107453]
[1733903250039,0.14929669,97480.0,97479.0,0.15107453]
[1733903250279,0.14168682,97480.0,97479.0,0.15107453]
[1733903250499,0.14929669,97480.0,97479.0,0.15107453]
[1733903250755,0.14168682,97480.0,97479.0,0.15107453]
[1733903250979,0.14929669,97480.0,97479.0,0.15107453]
[1733903251193,0.14168682,97480.0,97479.0,0.15107453]
[1733903251400,0.14929669,97480.0,97479.0,0.15107453]
[1733903255683,0.02097145,97480.0,97479.0,0.26038361]
[1733903255888,0.01336158,97480.0,97479.0,0.26038361]
[1733903256109,0.01336158,97480.0,97479.0,0.15107453]
[1733903256326,0.02097145,97480.0,97479.0,0.15107453]
[1733903256531,0.01336158,97480.0,97479.0,0.15107453]
[1733903256735,0.0011716,97480.0,97479.0,0.26038361]
[1733903256956,0.0011716,97480.0,97479.0,0.26138361]
[1733903257577,0.0001716,97480.0,97479.0,0.26138361]
[1733903257785,0.0011716,97480.0,97479.0,0.26138361]
[1733903258367,0.0001716,97480.0,97479.0,0.26138361]
[1733903258578,0.0001716,97480.0,97479.0,0.26238361]
[1733903258763,0.0231716,97480.0,97479.0,0.26238361]
[1733903258977,0.0001716,97480.0,97479.0,0.26238361]
[1733903259175,0.03078147,97480.0,97479.0,0.26138361]
[1733903259603,0.03078147,97480.0,97479.0,0.26238361]
[1733903259976,0.0001716,97480.0,97479.0,0.26238361]
[1733903260187,0.03078147,97480.0,97479.0,0.26238361]
[1733903260393,0.0231716,97480.0,97479.0,0.26238361]
[1733903260783,0.03078147,97480.0,97479.0,0.26238361]
[1733903261019,0.0001716,97480.0,97479.0,0.26238361]
[1733903261232,0.03078147,97480.0,97479.0,0.15307453]
[1733903261912,0.03078147,97480.0,97479.0,0.15207453]
[1733903262346,0.03078147,97480.0,97479.0,0.15107453]
[1733903262546,0.03278147,97480.0,97479.0,0.15107453]
[1733903262995,0.13810671,97480.0,97479.0,0.15107453]
[1733903266650,0.13810671,97480.0,97479.0,0.00160891]
[1733903266852,0.13810671,97480.0,97475.0,0.15046562]
[1733903266853,0.173,97479.0,97475.0,0.001]
[1733903267055,0.173,97477.0,97475.0,0.001]
[1733903267305,0.28593511,97476.0,97475.0,0.001]
[1733903267833,0.28594591,97476.0,97475.0,0.001]
[1733903269743,0.28894591,97476.0,97475.0,0.001]
[1733903269942,0.28994591,97476.0,97475.0,0.001]
[1733903270358,0.29405491,97476.0,97475.0,0.001]
[1733903274388,0.37125491,97476.0,97475.0,0.001]
[1733903274595,0.40301578,97476.0,97475.0,0.001]
[1733903274802,0.40301578,97476.0,97472.0,0.00016439]
[1733903274803,0.58336,97475.0,97472.0,0.00016439]
[1733903275003,0.173,97473.0,97472.0,0.00016439]
[1733903275209,0.62200099,97473.0,97472.0,0.00016439]
[1733903275421,0.80405647,97473.0,97472.0,0.00016439]
[1733903275625,0.66700099,97473.0,97472.0,0.00016439]
[1733903276440,0.81303345,97473.0,97472.0,0.00116439]
[1733903276671,0.71392424,97473.0,97472.0,0.00116439]
[1733903277204,0.71892424,97473.0,97472.0,0.00116439]
[1733903277627,0.71892367,97473.0,97472.0,0.00116439]
[1733903278341,0.30870621,97473.0,97472.0,0.00116439]
[1733903278550,0.03209756,97473.0,97472.0,0.00116439]
[1733903278912,0.03209756,97473.0,97472.0,0.00269639]
[1733903279115,0.03209756,97473.0,97472.0,0.00169639]
[1733903279323,0.02309756,97473.0,97472.0,0.00169639]
[1733903279524,0.2086228,97473.0,97472.0,0.00269639]
[1733903279728,0.378199,97466.0,97465.0,0.0488246]
[1733903279933,0.49114434,97466.0,97465.0,0.0488246]
[1733903280761,0.49114253,97466.0,97465.0,0.0488246]
[1733903282231,0.49714253,97466.0,97465.0,0.0498246]
[1733903282619,0.49114253,97466.0,97465.0,0.0488246]
[1733903283096,0.49913997,97466.0,97465.0,0.0498246]
[1733903283326,0.49313997,97466.0,97465.0,0.0488246]
[1733903283559,0.49913997,97466.0,97465.0,0.0498246]
[1733903283681,0.49113997,97466.0,97465.0,0.0488246]
[1733903284088,0.49413997,97466.0,97465.0,0.0488246]
[1733903284717,0.49113997,97466.0,97465.0,0.0488246]
[1733903285037,0.49313997,97466.0,97465.0,0.0488246]
[1733903285239,0.49913997,97466.0,97465.0,0.0498246]
[1733903285448,0.49313997,97466.0,97465.0,0.0488246]
[1733903285808,0.49913997,97466.0,97465.0,0.0498246]
[1733903286213,0.60233169,97466.0,97465.0,0.0498246]
[1733903286849,0.67763169,97466.0,97465.0,0.0498246]
[1733903287691,0.57443997,97466.0,97465.0,0.0498246]
[1733903288453,0.62333997,97466.0,97465.0,0.0293046]
[1733903288655,0.62333997,97466.0,97451.0,0.0004]
[1733903288656,0.023,97461.0,97451.0,0.0004]
[1733903288864,0.378229,97452.0,97451.0,0.0004]
[1733903289072,0.70559982,97452.0,97451.0,0.0004]
[1733903289315,0.49116997,97452.0,97451.0,0.0004]
[1733903289530,0.62812058,97452.0,97451.0,0.0004]
[1733903289737,0.49116419,97452.0,97451.0,0.0004]
[1733903289949,0.52286185,97452.0,97451.0,0.0014]
[1733903290151,0.62812466,97452.0,97451.0,0.0004]
[1733903290363,0.58247295,97452.0,97451.0,0.0004]
[1733903290578,0.49616419,97452.0,97451.0,0.0004]
[1733903290786,0.51644776,97452.0,97451.0,0.0004]
[1733903291183,0.61338655,97452.0,97451.0,0.0004]
[1733903291640,0.62238655,97452.0,97451.0,0.0014]
[1733903292056,0.63261036,97452.0,97451.0,0.0014]
[1733903292474,0.72386118,97452.0,97451.0,0.0014]
[1733903292683,0.63261036,97452.0,97451.0,0.0014]
[1733903294196,0.70791036,97452.0,97451.0,0.0014]
[1733903294372,0.75681036,97452.0,97451.0,0.0014]
[1733903297999,0.70791036,97452.0,97451.0,0.0014]
[1733903298440,0.61097157,97452.0,97451.0,0.0014]
[1733903298649,0.53567157,97452.0,97451.0,0.0014]
[1733903299295,0.52806162,97452.0,97451.0,0.0014]
[1733903299501,0.53566333,97452.0,97451.0,0.0014]
[1733903299703,0.53566333,97452.0,97451.0,0.0004]
[1733903299915,0.62676662,97452.0,97451.0,0.0004]
[1733903300116,0.63576662,97452.0,97451.0,0.0014]
[1733903300323,0.63976662,97452.0,97451.0,0.0014]
[1733903301562,0.53466333,97452.0,97451.0,0.0014]
[1733903302928,0.53466504,97452.0,97451.0,0.0014]
[1733903304119,0.65765596,97452.0,97451.0,0.0014]
[1733903304336,0.21369092,97451.0,97450.0,8.58e-05]
[1733903304541,0.355252,97441.0,97431.0,0.0004]
[1733903304715,0.46818066,97441.0,97431.0,0.0004]
[1733903304851,0.49984051,97441.0,97431.0,0.0004]
[1733903305059,0.6049438,97441.0,97431.0,0.0004]
[1733903305261,0.6872438,97441.0,97431.0,0.0004]
[1733903305467,0.68777818,97441.0,97431.0,0.0004]
[1733903305696,0.69277818,97441.0,97440.0,0.00114071]
[1733903306106,0.71577818,97441.0,97440.0,0.00114071]
[1733903306537,0.205255,97440.0,97437.0,0.05060604]
[1733903306734,0.378258,97438.0,97437.0,0.05060604]
[1733903306945,0.52284651,97438.0,97437.0,0.05060604]
[1733903308148,0.6279498,97438.0,97437.0,0.05060604]
[1733903308352,0.6369498,97438.0,97437.0,0.05060604]
[1733903308580,0.6409498,97438.0,97437.0,0.05060604]
[1733903308778,0.50418666,97438.0,97437.0,0.05060604]
[1733903309035,0.50418208,97438.0,97437.0,0.05060604]
[1733903312383,0.50418664,97438.0,97437.0,0.05060604]
[1733903312597,0.50418694,97438.0,97437.0,0.05060604]
[1733903314067,0.59670725,97438.0,97437.0,0.05060604]
[1733903315107,0.50418694,97438.0,97437.0,0.05060604]
[1733903316809,0.50418694,97438.0,97437.0,0.12650604]
[1733903318869,0.5042028,97438.0,97437.0,0.12650604]
[1733903319287,0.04361956,97438.0,97437.0,0.12650604]
[1733903319909,0.04361956,97438.0,97437.0,0.38674285]
[1733903320115,0.03461956,97438.0,97437.0,0.43464285]
[1733903320295,0.03061956,97438.0,97437.0,0.43464285]
[1733903320523,0.03561956,97438.0,97437.0,0.43464285]
[1733903321148,0.03461956,97438.0,97437.0,0.43464285]